[Event "*** Titled Tuesday Blitz"]
[Site "Chess.com"]
[Date "2021.03.16"]
[Round "11"]
[White "MustafayevFarid2004"]
[Black "MatyChess1"]
[Result "1-0"]
[WhiteElo "2488"]
[BlackElo "2572"]
[TimeControl "180+1"]
[EndTime "12:09:00 PDT"]
[Termination "MustafayevFarid2004 won by checkmate"]

1. d4 {[%clk 0:03:00.9]} 1... d5 {[%clk 0:02:59.7]} 2. c4 {[%clk 0:02:59.3]}
2... e6 {[%clk 0:02:59.9]} 3. Nc3 {[%clk 0:02:58.8]} 3... Bb4 {[%clk 0:02:59.9]}
4. e3 {[%clk 0:02:51.8]} 4... Nf6 {[%clk 0:02:58.4]} 5. Qc2 {[%clk 0:02:50]}
5... O-O {[%clk 0:02:57.3]} 6. a3 {[%clk 0:02:48.5]} 6... Bxc3+ {[%clk
0:02:54.7]} 7. Qxc3 {[%clk 0:02:41.4]} 7... b6 {[%clk 0:02:53.6]} 8. Qc2 {[%clk
0:02:40.8]} 8... dxc4 {[%clk 0:02:48.1]} 9. Bxc4 {[%clk 0:02:39.2]} 9... Ba6
{[%clk 0:02:48.6]} 10. Nf3 {[%clk 0:02:36.9]} 10... c5 {[%clk 0:02:43.2]} 11.
O-O {[%clk 0:02:35.1]} 11... cxd4 {[%clk 0:02:41.3]} 12. Nxd4 {[%clk 0:02:34.7]}
12... Qc7 {[%clk 0:02:37.6]} 13. Bxa6 {[%clk 0:01:55.2]} 13... Qxc2 {[%clk
0:02:38.5]} 14. Nxc2 {[%clk 0:01:55.9]} 14... Nxa6 {[%clk 0:02:38.8]} 15. Nd4
{[%clk 0:01:41.9]} 15... Rac8 {[%clk 0:02:13.8]} 16. b4 {[%clk 0:01:34.9]} 16...
Rc4 {[%clk 0:02:04.4]} 17. Bb2 {[%clk 0:01:30.8]} 17... Rfc8 {[%clk 0:02:05]}
18. Rac1 {[%clk 0:01:19.6]} 18... Ne4 {[%clk 0:02:02.8]} 19. Rxc4 {[%clk
0:01:09.6]} 19... Rxc4 {[%clk 0:02:02.4]} 20. f3 {[%clk 0:01:09]} 20... Nf6
{[%clk 0:01:44.4]} 21. Rd1 {[%clk 0:01:06.4]} 21... h5 {[%clk 0:01:36.4]} 22. e4
{[%clk 0:01:01]} 22... Nc7 {[%clk 0:01:31.2]} 23. Kf2 {[%clk 0:00:56.1]} 23...
Nd7 {[%clk 0:01:29.3]} 24. Ne2 {[%clk 0:00:44.5]} 24... Nf6 {[%clk 0:01:20.8]}
25. Bxf6 {[%clk 0:00:39.9]} 25... gxf6 {[%clk 0:01:20.6]} 26. Rd7 {[%clk
0:00:38.7]} 26... Rc2 {[%clk 0:01:14.7]} 27. Ke3 {[%clk 0:00:34.9]} 27... Nb5
{[%clk 0:00:52.7]} 28. a4 {[%clk 0:00:33.2]} 28... Nc3 {[%clk 0:00:49.5]} 29.
Nf4 {[%clk 0:00:27.1]} 29... Nxa4 {[%clk 0:00:43.1]} 30. Nxh5 {[%clk 0:00:25.7]}
30... Rxg2 {[%clk 0:00:42.2]} 31. Nxf6+ {[%clk 0:00:25.4]} 31... Kg7 {[%clk
0:00:41.9]} 32. Nh5+ {[%clk 0:00:23.4]} 32... Kf8 {[%clk 0:00:41.7]} 33. Rxa7
{[%clk 0:00:22.5]} 33... Nb2 {[%clk 0:00:38.6]} 34. Kd4 {[%clk 0:00:17.7]} 34...
Rxh2 {[%clk 0:00:36.7]} 35. Nf6 {[%clk 0:00:16.3]} 35... Rf2 {[%clk 0:00:26]}
36. Nd7+ {[%clk 0:00:08.4]} 36... Kg7 {[%clk 0:00:24.5]} 37. Ne5 {[%clk
0:00:09.3]} 37... b5 {[%clk 0:00:11.2]} 38. Rxf7+ {[%clk 0:00:08.4]} 38... Kg8
{[%clk 0:00:11.9]} 39. Rf4 {[%clk 0:00:08.2]} 39... Na4 {[%clk 0:00:09.4]} 40.
Nd3 {[%clk 0:00:06.7]} 40... Rf1 {[%clk 0:00:06.7]} 41. Rg4+ {[%clk 0:00:06.4]}
41... Kf7 {[%clk 0:00:06.4]} 42. Ne5+ {[%clk 0:00:05.8]} 42... Ke7 {[%clk
0:00:06.5]} 43. Rg7+ {[%clk 0:00:05.7]} 43... Kf8 {[%clk 0:00:05.7]} 44. Rf7+
{[%clk 0:00:05.7]} 44... Ke8 {[%clk 0:00:05.7]} 45. Rb7 {[%clk 0:00:05.9]} 45...
Rd1+ {[%clk 0:00:05.8]} 46. Ke3 {[%clk 0:00:05.8]} 46... Rb1 {[%clk 0:00:06.1]}
47. Rxb5 {[%clk 0:00:05.3]} 47... Nc3 {[%clk 0:00:06.5]} 48. Rb8+ {[%clk
0:00:05.4]} 48... Ke7 {[%clk 0:00:07.2]} 49. Kd3 {[%clk 0:00:05.5]} 49... Nd1
{[%clk 0:00:07.2]} 50. Kc2 {[%clk 0:00:04.4]} 50... Ra1 {[%clk 0:00:07.3]} 51.
Nc4 {[%clk 0:00:03.7]} 51... Nf2 {[%clk 0:00:07.4]} 52. Kb2 {[%clk 0:00:04.2]}
52... Rf1 {[%clk 0:00:06.7]} 53. Rb7+ {[%clk 0:00:04.5]} 53... Kf6 {[%clk
0:00:05.4]} 54. b5 {[%clk 0:00:05.2]} 54... Nd3+ {[%clk 0:00:05]} 55. Kc2 {[%clk
0:00:05.6]} 55... Nc5 {[%clk 0:00:05.9]} 56. Rc7 {[%clk 0:00:05.2]} 56... Na4
{[%clk 0:00:03.7]} 57. e5+ {[%clk 0:00:04.1]} 57... Kg6 {[%clk 0:00:02.2]} 58.
b6 {[%clk 0:00:03.1]} 58... Nxb6 {[%clk 0:00:01.9]} 59. Nxb6 {[%clk 0:00:02.7]}
59... Rxf3 {[%clk 0:00:02.8]} 60. Nc4 {[%clk 0:00:02.9]} 60... Rh3 {[%clk
0:00:01.5]} 61. Nd2 {[%clk 0:00:01.8]} 61... Kf5 {[%clk 0:00:01.7]} 62. Rc5
{[%clk 0:00:02.6]} 62... Kf4 {[%clk 0:00:01.6]} 63. Nb3 {[%clk 0:00:03]} 63...
Rh2+ {[%clk 0:00:02.1]} 64. Nd2 {[%clk 0:00:03.6]} 64... Kf5 {[%clk 0:00:01.9]}
65. Ra5 {[%clk 0:00:03.5]} 65... Kf4 {[%clk 0:00:02.1]} 66. Kd3 {[%clk
0:00:04.1]} 66... Rh3+ {[%clk 0:00:01.9]} 67. Kd4 {[%clk 0:00:04.8]} 67... Rh2
{[%clk 0:00:02]} 68. Ne4 {[%clk 0:00:05.4]} 68... Rh1 {[%clk 0:00:02.4]} 69. Nd6
{[%clk 0:00:04.5]} 69... Rd1+ {[%clk 0:00:02.7]} 70. Kc3 {[%clk 0:00:04.9]}
70... Rc1+ {[%clk 0:00:03]} 71. Kd2 {[%clk 0:00:04.9]} 71... Rc7 {[%clk
0:00:03.3]} 72. Kd3 {[%clk 0:00:03.5]} 72... Rc1 {[%clk 0:00:03.1]} 73. Nc4
{[%clk 0:00:03.7]} 73... Kf5 {[%clk 0:00:02.7]} 74. Ra8 {[%clk 0:00:03.3]} 74...
Rd1+ {[%clk 0:00:02.1]} 75. Kc2 {[%clk 0:00:03.9]} 75... Rh1 {[%clk 0:00:02.7]}
76. Rf8+ {[%clk 0:00:04.3]} 76... Ke4 {[%clk 0:00:03.3]} 77. Re8 {[%clk
0:00:04.2]} 77... Kd5 {[%clk 0:00:03.3]} 78. Nd2 {[%clk 0:00:03.4]} 78... Kxe5
{[%clk 0:00:03.1]} 79. Ra8 {[%clk 0:00:04.3]} 79... Rh2 {[%clk 0:00:03.1]} 80.
Ra5+ {[%clk 0:00:04.8]} 80... Kf6 {[%clk 0:00:03.3]} 81. Ra3 {[%clk 0:00:05.7]}
81... e5 {[%clk 0:00:03.5]} 82. Rf3+ {[%clk 0:00:06.1]} 82... Ke6 {[%clk
0:00:04.1]} 83. Kc1 {[%clk 0:00:06.8]} 83... Kd5 {[%clk 0:00:04.3]} 84. Kc2
{[%clk 0:00:06.3]} 84... e4 {[%clk 0:00:04.2]} 85. Re3 {[%clk 0:00:06.4]} 85...
Kd4 {[%clk 0:00:03.1]} 86. Rxe4+ {[%clk 0:00:06.7]} 86... Kd5 {[%clk 0:00:03.8]}
87. Ra4 {[%clk 0:00:07.4]} 87... Kc5 {[%clk 0:00:03.9]} 88. Kc3 {[%clk
0:00:07.1]} 88... Kb5 {[%clk 0:00:04.4]} 89. Rg4 {[%clk 0:00:07.1]} 89... Rh3+
{[%clk 0:00:04.7]} 90. Kd4 {[%clk 0:00:07.1]} 90... Kb6 {[%clk 0:00:05.1]} 91.
Nc4+ {[%clk 0:00:06.3]} 91... Kc7 {[%clk 0:00:05.4]} 92. Kc5 {[%clk 0:00:06.3]}
92... Rh5+ {[%clk 0:00:05.5]} 93. Kd4 {[%clk 0:00:06.7]} 93... Kc6 {[%clk
0:00:05.7]} 94. Rg6+ {[%clk 0:00:07.3]} 94... Kd7 {[%clk 0:00:06.2]} 95. Ne5+
{[%clk 0:00:07.6]} 95... Ke7 {[%clk 0:00:06.3]} 96. Kd5 {[%clk 0:00:08.2]} 96...
Rh1 {[%clk 0:00:06.2]} 97. Re6+ {[%clk 0:00:08]} 97... Kd8 {[%clk 0:00:05]} 98.
Ra6 {[%clk 0:00:07.8]} 98... Rd1+ {[%clk 0:00:05]} 99. Ke6 {[%clk 0:00:08.1]}
99... Kc7 {[%clk 0:00:05.2]} 100. Rc6+ {[%clk 0:00:07.5]} 100... Kb7 {[%clk
0:00:05.4]} 101. Rc2 {[%clk 0:00:07.8]} 101... Re1 {[%clk 0:00:05.7]} 102. Kd5
{[%clk 0:00:07]} 102... Rd1+ {[%clk 0:00:05.9]} 103. Kc5 {[%clk 0:00:07.6]}
103... Re1 {[%clk 0:00:06.1]} 104. Nc4 {[%clk 0:00:08]} 104... Rh1 {[%clk
0:00:06]} 105. Rg2 {[%clk 0:00:07.8]} 105... Rh5+ {[%clk 0:00:05.3]} 106. Kb4
{[%clk 0:00:07]} 106... Rh4 {[%clk 0:00:05.7]} 107. Rg6 {[%clk 0:00:07.2]}
107... Kc7 {[%clk 0:00:05.7]} 108. Kc5 {[%clk 0:00:05.6]} 108... Rh5+ {[%clk
0:00:06.3]} 109. Kd4 {[%clk 0:00:06.2]} 109... Rh4+ {[%clk 0:00:07]} 110. Kd5
{[%clk 0:00:06.6]} 110... Kd7 {[%clk 0:00:06.7]} 111. Rg7+ {[%clk 0:00:05.6]}
111... Kc8 {[%clk 0:00:03.8]} 112. Ne5 {[%clk 0:00:06.5]} 112... Rh1 {[%clk
0:00:02.9]} 113. Nc4 {[%clk 0:00:04.7]} 113... Kb8 {[%clk 0:00:02.2]} 114. Kc6
{[%clk 0:00:05]} 114... Rh6+ {[%clk 0:00:02.6]} 115. Nd6 {[%clk 0:00:04]} 115...
Rh1 {[%clk 0:00:03.2]} 116. Rg8+ {[%clk 0:00:02.9]} 116... Ka7 {[%clk
0:00:03.1]} 117. Nb5+ {[%clk 0:00:03.8]} 117... Ka6 {[%clk 0:00:03.5]} 118. Ra8#
{[%clk 0:00:04.7]} 1-0